Cogmind - Beta 14 @@@ ROGUE MODE // 2024.12.07 @ 16:18:14 Player: droogie Result: Destroyed by H-61 Shepherd with Heavy Assault Cannon Performance ------------- Evolutions (2) 1000 Regions Visited (4) 800 Robots Destroyed (44) 220 Value Destroyed (1599) 1599 Prototype IDs (0) 0 Alien Tech Used (0) 0 Bonus (43) 43 TOTAL SCORE: 3662 Bonus ------- High Alert Combat Kills 43 Cogmind --------- Core Integrity 0/550 Matter 300/300 Energy 31/100 System Corruption 0% Temperature Cool (0) Movement Core (50) Location -8/Materials Parts ------- > --- POWER (1) -------- (None) > --- PROPULSION (4) --- (None) > --- UTILITY (3) ------ Advanced Targeting Computer > --- WEAPON (3) ------- (None) > --- INVENTORY (5) ---- Aluminum Leg Small Storage Unit Gauss Rifle Welding Torch Peak State ------------ > --- POWER ------------ Ion Engine > --- PROPULSION ------- Aluminum Leg Aluminum Leg Carbon-fiber Leg Titanium Leg > --- UTILITY ---------- Heat Sink Small Storage Unit Advanced Targeting Computer > --- WEAPON ----------- Spread Laser Particle Cannon > --- INVENTORY -------- Ion Engine Aluminum Leg Aluminum Leg Aluminum Leg Aluminum Leg EM Pulse Gun Beam Rifle Grenade Launcher [Rating: 18] Favorites ----------- Power Ion Engine Engine Ion Engine Propulsion Aluminum Leg Leg Aluminum Leg Utility Small Storage Unit Device Heat Sink Storage Small Storage Unit Processor Advanced Targeting Computer Protection Light Armor Plating Weapon Small Laser Energy Gun Small Laser Energy Cannon Particle Cannon Ballistic Gun Assault Rifle Launcher Grenade Launcher Build | -11 -10 -10 -9 -8 ------- Run | Yrd Mat Min Mat Mat Slots Evolved 4 | . . . 2 2 Power . | . . . . . Propulsion 2 | . . . 2 . Utility 1 | . . . . 1 Weapon 1 | . . . . 1 Parts Attached 43 | 6 1 . 11 25 Power 6 | 1 1 . 1 3 Engine 6 | 1 1 . 1 3 Core . | . . . . . Reactor . | . . . . . Propulsion 23 | 2 . . 7 14 Treads . | . . . . . Leg 23 | 2 . . 7 14 Wheel . | . . . . . Hover . | . . . . . Flight . | . . . . . Utility 4 | 1 . . 1 2 Device 1 | . . . . 1 Storage 1 | 1 . . . . Processor 1 | . . . . 1 Hackware . | . . . . . Protection 1 | . . . 1 . Artifact . | . . . . . Weapon 10 | 2 . . 2 6 Energy Gun 6 | 1 . . 1 4 Energy Cannon 2 | . . . 1 1 Ballistic Gun 1 | 1 . . . . Ballistic Cannon . | . . . . . Launcher 1 | . . . . 1 Special Weapon . | . . . . . Impact Weapon . | . . . . . Slashing Weapon . | . . . . . Piercing Weapon . | . . . . . Special Melee Weapon . | . . . . . Unidentified Prototypes . | . . . . . Parts Lost 22 | . . . 4 18 Power 2 | . . . 1 1 Propulsion 9 | . . . . 9 Utility 3 | . . . 1 2 Weapon 8 | . . . 2 6 Highest Loss Streak 7 | . . . 2 7 To Critical Strikes . | . . . . . Average Slot Usage (%) 85 | . 85 85 92 80 Engine 9 | . 14 14 10 6 Leg 35 | . 28 28 42 33 Device 2 | . . . . 7 Storage 10 | . 14 14 11 7 Processor 3 | . . . . 8 Protection 1 | . . . 5 . Energy Gun 12 | . 14 14 12 12 Energy Cannon 3 | . . . 3 4 Ballistic Gun 5 | . 14 14 5 . Peak Build Rating 18 | 6 6 6 11 18 Average Rating 10 | 3 6 6 9 14 On Entrance 5 | . 6 6 6 10 Naked Turns . | . . . . . Heaviest Build 20 | 13 13 11 17 20 Greatest Support 52 | 20 20 20 40 52 Greatest Overweight (x) . | . . . . . Average Overweight (x) . | . . . . . Largest Inventory Capacity 8 | 8 8 8 8 8 Average Capacity 7 | 6 8 8 8 7 Most Carried 8 | 4 8 8 8 8 Average Carried 6 | 2 6 7 7 6 Final Capacity 8 | 8 8 8 8 5 Final Carried 8 | 4 7 8 8 4 Class Distribution -------------------- 57% | Mutant 39% | Scavenger-Mutant 3% | Scavenger-Gunner Dominant Class ---------------- Mutant | -10/Materials Mutant | -10/Mines Mutant | -9/Materials Scavenger-Mutant | -8/Materials Resources | -11 -10 -10 -9 -8 ----------- Run | Yrd Mat Min Mat Mat Matter Collected 920 | 247 62 6 132 473 Remotely . | . . . . . Salvage Created 1241 | . 125 13 360 743 Parts 65 | . 10 . 33 22 Haulers Intercepted . | . . . . . Recyclers Shooed 3 | . . 1 . 2 Parts Field Recycled . | . . . . . Retrieved Matter . | . . . . . Parts Self-Destructed . | . . . . . Prevented . | . . . . . Kills | -11 -10 -10 -9 -8 ------- Run | Yrd Mat Min Mat Mat Combat Hostiles Destroyed 42 | . 5 1 14 22 Guns 28 | . 5 1 14 8 Cannons 5 | . . . . 5 AOE 8 | . . . . 8 Classes Destroyed 8 | . 2 1 2 3 Worker 1 | . . . . 1 Tunneler 1 | . . . 1 . Swarmer 10 | . 3 . 7 . Grunt 24 | . 2 . 5 17 Sentry 4 | . . . 2 2 Demolisher 1 | . . 1 . . Specialist 2 | . . . . 2 Hunter 1 | . . . . 1 Best Kill Streak 9 | . 3 1 4 9 Combat Bots Only 8 | . 3 1 4 8 Max Kills in Single Turn 2 | . 2 1 2 1 Gunslinging 1 | . 1 . 1 . Exploded 1 | . . . . 1 Melee . | . . . . . Uniques/NPCs Destroyed . | . . . . . Combat | -11 -10 -10 -9 -8 -------- Run | Yrd Mat Min Mat Mat Hostile Shots Fired 285 | . 34 . 62 189 Missed 96 | . 13 . 18 65 Damage Taken 2915 | . 170 68 513 2164 Core 681 | . 26 13 50 592 Absorbed by Shields . | . . . . . Regen/Repaired (Parts) 148 | . . . 148 . Core Remaining (%) 90 | 100 . 84 87 . Volleys Fired 120 | . 14 1 44 61 Largest 3 | . 2 2 2 3 Hottest 186 | . 60 60 133 186 Shots Fired 214 | . 28 2 80 104 Gun 170 | . 28 2 73 67 Cannon 30 | . . . 7 23 Launcher 14 | . . . . 14 Special . | . . . . . Kinetic 36 | . 14 1 21 . Thermal 159 | . 14 1 59 85 Explosive 14 | . . . . 14 Electromagnetic 5 | . . . . 5 Robot Hit Streak 24 | . 4 3 11 24 Robot Miss Streak 11 | . 3 . 11 5 Penetration Max . | . . . . . Secondary Targets 3 | . 1 . 1 1 Max Gunslinging Chain 1 | . 1 . 1 1 Shots Hit Robots 166 | . 14 2 59 91 Core Hits 140 | . 8 1 38 93 Critical Kills 1 | . . . . 1 Critical Parts Destroyed . | . . . . . Critical Strikes 3 | . . . . 3 Burn 2 | . . . . 2 Meltdown 1 | . . . . 1 Melee Attacks . | . . . . . Impact . | . . . . . Slashing . | . . . . . Piercing . | . . . . . Sneak Attacks . | . . . . . Combat Hostiles . | . . . . . Follow-up Attacks . | . . . . . Damage Inflicted 3654 | . 160 32 742 2720 Guns 1863 | . 160 26 660 1017 Cannons 470 | . . . 82 388 Explosions 1291 | . . . . 1291 Melee . | . . . . . Ramming 30 | . . 6 . 24 Kinetic 240 | . 82 15 143 . Thermal 2116 | . 78 11 599 1428 Explosive 1219 | . . . . 1219 Electromagnetic 49 | . . . . 49 Impact . | . . . . . Slashing . | . . . . . Piercing . | . . . . . Highest Corruption . | . . . . . Average Corruption . | . . . . . Corruption Purged . | . . . . . Corruption Blocked . | . . . . . Overload Shots . | . . . . . Overflow Damage 15 | . . . . 15 Projectiles 15 | . . . . 15 Explosions . | . . . . . Melee . | . . . . . Knockbacks . | . . . . . Impact . | . . . . . Kinetic . | . . . . . Secondary . | . . . . . Self-Inflicted Damage 18 | . . . . 18 Shots 1 | . . . . 1 Rammed 2 | . . . . 2 Targets Rammed 9 | . . 3 1 5 Kicked 7 | . . 3 1 3 Crushed . | . . . . . Highest Temperature 486 | . 18 . 364 486 Average Temperature 140 | . 12 . 134 155 Received Heat Transfer 1254 | . 18 . 219 1017 Effects 11 | . . . . 11 Shutdowns 3 | . . . . 3 Energy Bleed 1 | . . . . 1 Interference 3 | . . . . 3 Matter Decay 2 | . . . . 2 Short Circuit 1 | . . . . 1 Damage (minor) 1 | . . . . 1 Siege Activations . | . . . . . Robots Corrupted . | . . . . . Combat Hostiles . | . . . . . Parts Fried . | . . . . . Impact Corruptions . | . . . . . Robots Melted 1 | . . . . 1 Combat Hostiles 1 | . . . . 1 Parts Melted 7 | . . . . 7 Heat Transferred 3851 | . 175 25 1028 2623 Parts Sabotaged . | . . . . . Parts Stolen . | . . . . . Parts Stripped . | . . . . . Power Chain Reactions 1 | . . . . 1 Alert | -11 -10 -10 -9 -8 ------- Run | Yrd Mat Min Mat Mat Peak Influence 493 | . 195 75 410 493 Initial 101 | . . 75 29 101 Average 174 | . 95 72 173 241 Maximum Alert Level 2 | . . . 2 2 Low Security (%) 60 | 100 100 100 45 45 Level 1 31 | . . . 51 37 Level 2 7 | . . . 2 16 Level 3 . | . . . . . Level 4 . | . . . . . Level 5 . | . . . . . High Security . | . . . . . Max Security . | . . . . . Squads Dispatched 6 | . 1 . 1 4 Investigation 1 | . . . 1 . Extermination . | . . . . . Reinforcement 5 | . 1 . . 4 Assault . | . . . . . Garrison . | . . . . . Intercept . | . . . . . Searches Triggered . | . . . . . Construction Impeded 1 | . . . . 1 Haulers Reinforced . | . . . . . Active Scanning Responses . | . . . . . Cargo Convoy Interrupts . | . . . . . Stealth | -11 -10 -10 -9 -8 --------- Run | Yrd Mat Min Mat Mat Distress Signals 8 | . 2 . 4 2 Communications Jammed . | . . . . . Distress Signals . | . . . . . Times Spotted 72 | . 11 4 19 38 Peak Tracking Total 9 | . 5 4 7 9 Tactical Retreats 3 | . 1 . 1 1 Traps | -11 -10 -10 -9 -8 ------- Run | Yrd Mat Min Mat Mat Traps Triggered 3 | . . . 1 2 Indirectly . | . . . . . Trap Hack Attempts . | . . . . . Triggered . | . . . . . Disarmed . | . . . . . Reprogrammed . | . . . . . Reused . | . . . . . Traps Extracted . | . . . . . Installed . | . . . . . Triggered . | . . . . . Machines | -11 -10 -10 -9 -8 ---------- Run | Yrd Mat Min Mat Mat Machines Disabled 2 | . . . . 2 Max in Single Turn 2 | . . . . 2 Machines Repaired . | . . . . . Machines Dismantled . | . . . . . Machines Sabotaged . | . . . . . Overloaded Fab Kills . | . . . . . Hacking | -11 -10 -10 -9 -8 --------- Run | Yrd Mat Min Mat Mat Machines Accessed 2 | . . . 1 1 Terminals 1 | . . . . 1 Fabricators . | . . . . . Repair Stations 1 | . . . 1 . Recycling Units . | . . . . . Scanalyzers . | . . . . . Garrison Access . | . . . . . Total Hacks 12 | . . . 7 5 Successful 10 | . . . 6 4 Failed 2 | . . . 1 1 Catastrophic . | . . . . . Database Lockouts . | . . . . . Manual . | . . . . . Terminals 5 | . . . . 5 Fabricators . | . . . . . Repair Stations 7 | . . . 7 . Recycling Units . | . . . . . Scanalyzers . | . . . . . Garrison Access . | . . . . . Terminal Hacks 4 | . . . . 4 Record 3 | . . . . 3 Registered Components 1 | . . . . 1 Fabricator Hacks . | . . . . . Repair Station Hacks 6 | . . . 6 . Scan Component 3 | . . . 3 . Repair 3 | . . . 3 . Recycling Unit Hacks . | . . . . . Scanalyzer . | . . . . . Garrison Access Hacks . | . . . . . Unauthorized Hacks . | . . . . . Terminals . | . . . . . Fabricators . | . . . . . Repair Stations . | . . . . . Recycling Units . | . . . . . Scanalyzers . | . . . . . Garrison Access . | . . . . . Data Cores Recovered . | . . . . . Used . | . . . . . Hacking Detections 1 | . . . 1 . Full Trace Events 1 | . . . 1 . Feedback Events . | . . . . . Feedback Blocked . | . . . . . Robot Schematics Acquired . | . . . . . Robots Built . | . . . . . Authchips . | . . . . . Time . | . . . . . Total Robot Build Rating . | . . . . . Part Schematics Acquired . | . . . . . Parts Built . | . . . . . Authchips . | . . . . . Time . | . . . . . Total Part Build Rating . | . . . . . Parts Repaired 3 | . . . 3 . Time 78 | . . . 78 . Parts Recycled . | . . . . . Recycled Matter . | . . . . . Retrieved Matter . | . . . . . Retrieved Components . | . . . . . Parts Scanalyzed . | . . . . . Part Schematics Acquired . | . . . . . Parts Damaged . | . . . . . Bothacking | -11 -10 -10 -9 -8 ------------ Run | Yrd Mat Min Mat Mat Used RIF Installer . | . . . . . Robots Hacked . | . . . . . Non-combat . | . . . . . Combat . | . . . . . Robot Hacks Applied . | . . . . . Relay Couplers Released . | . . . . . Fabnet Peak Effective % . | . . . . . Robots Rewired . | . . . . . Allies Hacked . | . . . . . Hacks Repelled . | . . . . . Allies | -11 -10 -10 -9 -8 -------- Run | Yrd Mat Min Mat Mat Total Allies 1 | . . 1 . . Largest Group 1 | . . 1 . . Highest-Rated Group 31 | . . 31 . . Highest-Rated Ally 31 | . . 31 . . Total Orders . | . . . . . Ally Attacks 3 | . . 3 . . Total Damage 61 | . . 61 . . Kills . | . . . . . Allies Corrupted . | . . . . . Allies Melted . | . . . . . Intel | -11 -10 -10 -9 -8 ------- Run | Yrd Mat Min Mat Mat Robot Analysis Total . | . . . . . Derelict Logs Recovered . | . . . . . Drone Launches . | . . . . . Drone Recoveries . | . . . . . Exploration | -11 -10 -10 -9 -8 ------------- Run | Yrd Mat Min Mat Mat Turns Passed 1678 | 73 321 64 538 682 Spaces Moved 856 | 53 205 39 230 329 Core 15 | 5 . . . 10 Treads . | . . . . . Legs 841 | 48 205 39 230 319 Wheels . | . . . . . Hover . | . . . . . Flight . | . . . . . Fastest Speed 50 | 50 120 120 120 50 Average Speed 119 | 113 120 120 120 118 Slowest Speed 130 | 120 120 120 120 130 Overloaded Moves . | . . . . . Propulsion Burnouts . | . . . . . Robots Hopped . | . . . . . Cave-ins Triggered . | . . . . . Exploration Rate (%) 22 | 4 33 15 25 34 Regions Visited 4 Branch Regions 1 Pre-discovered Areas . | . . . . . Known Exits Taken . | . . . . . Unknown Exits Taken 4 | 1 1 1 1 . Scrap Searched 1 | . . 1 . . Spaces Dug . | . . . . . Terrain Destroyed 64 | . . . . 64 Melee . | . . . . . Projectile . | . . . . . AOE 64 | . . . . 64 Terrain Rammed . | . . . . . Walls Destroyed . | . . . . . Machines Disabled . | . . . . . Actions | -11 -10 -10 -9 -8 --------- Run | Yrd Mat Min Mat Mat Total 1300 | 63 252 53 414 518 Wait 241 | 1 26 10 118 86 Move 853 | 52 204 39 229 329 Hop . | . . . . . Pick Up 22 | 4 5 1 7 5 Fast Attach 15 | 6 . . 3 6 Attach 15 | . . . 5 10 Detach 1 | . . . . 1 Swap 13 | . 1 . 3 9 Drop 12 | . 2 . 4 6 Fire 120 | . 14 1 44 61 Melee . | . . . . . Ram 2 | . . . . 2 Kick 6 | . . 2 1 3 Crush . | . . . . . Escape Stasis . | . . . . . Rewire . | . . . . . Trap . | . . . . . Miscellaneous . | . . . . . Route ------- -11/Scrapyard -10/Materials -10/Mines -9/Materials -8/Materials History --------- Turn | Location | Event 5 | -11/Scrapyard | Discovered new exit (range 16) 74 | -11/Scrapyard | Entered Materials 326 | -10/Materials | Build established: Mutant 365 | -10/Materials | Discovered new exit (range 15) 395 | -10/Materials | Entered Mines 396 | -10/Mines | Assembled infested the area 398 | -10/Mines | Received a Mining Laser from a helpful Derelict 402 | -10/Mines | Assisted by a Guerilla fighting off Assembled 411 | -10/Mines | Discovered new exit (range 9) 459 | -10/Mines | Entered Materials 459 | -9/Materials | Evolved 2 slots: Propulsion x2 868 | -9/Materials | Discovered new exit (range 16) 919 | -9/Materials | Repaired Aluminum Leg 947 | -9/Materials | Repaired Aluminum Leg 976 | -9/Materials | Repaired Aluminum Leg 997 | -9/Materials | Entered another Materials area 997 | -8/Materials | Evolved 2 slots: Utility x1, Weapon x1 1464 | -8/Materials | Core integrity fell below 50% 1604 | -8/Materials | Lost 7 parts (3n1u3w) 1615 | -8/Materials | Destroyed 8 combat bots 1670 | -8/Materials | Core integrity fell below 20% 1679 | -8/Materials | Destroyed by H-61 Shepherd with Heavy Assault Cannon Last Messages --------------- 01661_ Particle Cannon destroyed. 01663_ Acquired 20 matter. 01664_ Carbon-fiber Leg destroyed. 01664_ EM Pulse Gun destroyed. 01666_ Slug penetrates Wall. 01669_ Knocked back. 01671_ Aluminum Leg destroyed. 01671_ Knocked back. 01673_ Titanium Leg destroyed. 01673_ Heat Sink destroyed. 01677_ Slug penetrates Wall. 01677_ Fusion Modulator explodes. 01677_ M-13 Machinist destroyed. 01677_ Slammed into H-61 Shepherd. 01678_ K-01 Serf collects debris. 01679_ Slammed into H-61 Shepherd. 01679_ H-61 Shepherd calls for reinforcements. 01679_ ALERT: Hostile activity reported, dispatching reinforcements to area. 01679_ Penetrated by Slug. Map ----- +----------------------------------------------------+ | ??????????????????????????????????# #??????????? | | ??????????????????????????????????# #??????????? | | ??????????????????????????????????# #??????????? | | ??????????????????????????????????# #??????????? | | ??????????????????????????????????# #####+???##? | | ??????????????????????????????????# ## ?? #? | | ?????????????????????????????????## ## """ ## | | ????????????????####+####+######## # """ "" | | ????????????????# # """ "" | | ????????????????# !== * + S | | ???????????? !=%== # "" | | ?????????????????####### =#######% # !!! "" | | ???????????????????????# ######## ## !! #? | | ???????????????????????# xx#!!! # # !! #? | | ???????????????????????# % #! %* # # #####?? | | ???????????????????????#r ; = ; ### ####### | | ???????????????????????# ; ; !% | | ???????????????????????# k ; ; * | | ???????????????????????# m | | ???????????????????????# ; #####/######## | | ???????????????????????# ; ;;;;" # !% #??? | | ??????????????????????## ; # """#??? | | ???????????#+########## ! ; ## # R"#??? | | ????????? ;#???# # ""#??? | | ????????? %H #????# ## #??? | | ????????? % @ #????## # #??? | | ????????????######" "## #?????### #??? | | ?????????????????#"R"?#######?????# # #??? | | ?????????????????#""?????????????# ###########??? | | ?????????????????????????????????### # ###?????? | | ???????????????????????????????????#######???????? | | ?????????????????????????????????????????????????? | | ?????????????????????????????????????????????????? | | ?????????????????????????????????????????????????? | | ?????????????????????????????????????????????????? | | ?????????????????????????????????????????????????? | | ?????????????????????????????????????????????????? | | ?????????????????????????????????????????????????? | | ?????????????????????????????????????????????????? | | ?????????????????????????????????????????????????? | | ?????????????????????????????????????????????????? | | ?????????????????????????????????????????????????? | | ?????????????????????????????????????????????????? | | ?????????????????????????????????????????????????? | | ?????????????????????????????????????????????????? | | ?????????????????????????????????????????????????? | | ?????????????????????????????????????????????????? | | ?????????????????????????????????????????????????? | | ?????????????????????????????????????????????????? | | ?????????????????????????????????????????????????? | +----------------------------------------------------+ Best States ------------- Heat Dissipation 41 Energy Generation 10 Energy Capacity 250 Matter Stores 300 Matter Capacity 300 Sight Range 16 Terrain Scan Density 10 Armor Coverage 150 Evasion (%) 55 Targeting Accuracy 8 Item Schematics ----------------- None Robot Schematics ------------------ None Fabricated ------------ Nothing Alien Tech Used ----------------- None Achievements -------------- None Challenges ------------ None Game ------ Seed GuidanceSensorSpiker Manual? 0 Play Time 00:28:27 Cumulative 8.8 hours Start 2024.12.07 @ 15:56:08 End 2024.12.07 @ 16:18:14 Sessions 1 Manual Loads 0 Difficulty Rogue Special Mode None Game No. 26 Rogue 26 Adventurer 0 Explorer 0 Win Type - Total 0 Types 0/0/0/0/0/0/0/0/0 Lore% 2 Gallery% 11 Achievement% 8 Wizard Run 0 Options --------- Layout 1 ASCII 0 Keyboard 0 Movement Numpad Keybinds 0 Fullscreen 0 Font 28/SmallcapsGlow Map View 50x35 Zoom Use 0% Tactical HUD 1 Map Filters NONE Filters NONE Steam X RUN: c4109d40-d54e-4dc7-b6fc-a5fe6cf7340c